Cogmind - Beta 10.2 @@@ ROGUE MODE // 2021.05.08 @ 13:18:27 Player: Golova4lena Result: Destroyed by 8R-AWN with 8R-AWN's Boregun Performance ------------- Evolutions (0) 0 Regions Visited (2) 400 Robots Destroyed (11) 55 Value Destroyed (84) 84 Prototype IDs (0) 0 Alien Tech Used (0) 0 Bonus (0) 0 TOTAL SCORE: 539 Bonus ------- None Cogmind --------- Core Integrity 0/250 Matter 214/300 Energy 100/100 System Corruption 1% Temperature Cool (0) Movement Treading (160) Location -10/Mines Parts ------- > --- POWER (1) -------- (None) > --- PROPULSION (2) --- Light Treads Light Treads > --- UTILITY (2) ------ High-capacity Storage Unit > --- WEAPON (2) ------- (None) > --- INVENTORY (12) --- Wheel Wheel Cooling System High-capacity Matter Pod (19) Peak State ------------ > --- POWER ------------ Ion Engine > --- PROPULSION ------- Light Treads Wheel > --- UTILITY ---------- Cooling System High-capacity Storage Unit > --- WEAPON ----------- Spread Laser Spread Laser > --- INVENTORY -------- Light Ion Engine Light Treads Light Treads Light Treads Wheel High-capacity Matter Pod Transport Network Coupler Spread Laser Spread Laser Assault Rifle Light Assault Rifle Grenade Launcher [Rating: 11] Favorites ----------- Power Ion Engine Engine Ion Engine Propulsion Aluminum Leg Treads Light Treads Leg Aluminum Leg Wheel Wheel Utility High-capacity Storage Unit Device Cooling System Storage High-capacity Storage Unit Weapon Spread Laser Energy Gun Spread Laser Ballistic Gun Light Assault Rifle Launcher Grenade Launcher Special Weapon Mining Laser Build | -11 -10 -10 ------- Run | Scr Mat Min Slots Evolved . | . . . Power . | . . . Propulsion . | . . . Utility . | . . . Weapon . | . . . Parts Attached 28 | 6 9 13 Power 2 | 1 . 1 Engine 2 | 1 . 1 Core . | . . . Reactor . | . . . Propulsion 9 | 2 3 4 Treads 5 | . 2 3 Leg 3 | 2 . 1 Wheel 1 | . 1 . Hover . | . . . Flight . | . . . Utility 4 | 1 3 . Device 2 | . 2 . Storage 2 | 1 1 . Processor . | . . . Hackware . | . . . Protection . | . . . Artifact . | . . . Weapon 13 | 2 3 8 Energy Gun 5 | . 2 3 Energy Cannon . | . . . Ballistic Gun 4 | 2 1 1 Ballistic Cannon . | . . . Launcher 2 | . . 2 Special Weapon 2 | . . 2 Impact Weapon . | . . . Slashing Weapon . | . . . Piercing Weapon . | . . . Special Melee Weapon . | . . . Unidentified Prototypes . | . . . Parts Lost 13 | . . 13 Power 2 | . . 2 Propulsion 3 | . . 3 Utility 1 | . . 1 Weapon 7 | . . 7 Highest Loss Streak 12 | . . 12 Average Slot Usage (%) 91 | . 92 90 Engine 12 | . 14 10 Treads 8 | . 3 16 Leg 13 | . 21 . Wheel 5 | . 3 9 Device 9 | . 7 12 Storage 14 | . 14 14 Energy Gun 10 | . 4 19 Ballistic Gun 15 | . 23 1 Naked Turns . | . . . Heaviest Build 45 | 12 45 45 Greatest Support 40 | 20 20 40 Greatest Overweight (x) 4 | 3 4 4 Average Overweight (x) 2 | . 1 3 Largest Inventory Capacity 14 | 6 14 12 Average Capacity 10 | 5 9 12 Most Carried 12 | 4 12 12 Average Carried 7 | 1 7 9 Final Capacity 12 | 6 12 12 Final Carried 12 | 4 12 4 Class Distribution -------------------- 100% | Mutant Dominant Class ---------------- Mutant | -10/Materials Mutant | -10/Mines Resources | -11 -10 -10 ----------- Run | Scr Mat Min Matter Collected 632 | 227 173 232 Remotely . | . . . Salvage Created 270 | . 179 91 Parts 22 | . 16 6 Haulers Intercepted 2 | . 2 . Recyclers Shooed 3 | . 1 2 Parts Field Recycled . | . . . Retrieved Matter . | . . . Parts Self-Destructed . | . . . Prevented . | . . . Kills | -11 -10 -10 ------- Run | Scr Mat Min Combat Hostiles Destroyed 10 | . 6 4 Guns 6 | . 6 . AOE 4 | . . 4 Classes Destroyed 5 | . 2 3 Tunneler 2 | . . 2 Hauler 2 | . 2 . Recycler 1 | . . 1 Swarmer 6 | . 6 . Assembled 4 | . . 4 Best Kill Streak 4 | . 3 4 Combat Bots Only 4 | . 3 4 Max Kills in Single Turn 3 | . 1 3 Gunslinging . | . . . Exploded 3 | . . 3 Melee . | . . . Uniques/NPCs Destroyed . | . . . Combat | -11 -10 -10 -------- Run | Scr Mat Min Damage Taken 1501 | . 303 1198 Core 255 | . 63 192 Absorbed by Shields . | . . . Core Remaining (%) 100 | 100 . . Volleys Fired 84 | . 37 47 Largest 2 | . 2 2 Hottest 130 | . 40 130 Shots Fired 146 | . 74 72 Gun 131 | . 74 57 Cannon . | . . . Launcher 15 | . . 15 Special . | . . . Kinetic 91 | . 74 17 Thermal 40 | . . 40 Explosive 15 | . . 15 Electromagnetic . | . . . Robot Hit Streak 10 | . 8 10 Robot Miss Streak 6 | . 6 5 Penetration Max . | . . . Secondary Targets 1 | . 1 . Max Gunslinging Chain 1 | . 1 . Shots Hit Robots 112 | . 46 66 Core Hits 53 | . 11 42 Critical Hits . | . . . Critical Kills . | . . . Critical Parts Destroyed . | . . . Melee Attacks . | . . . Impact . | . . . Slashing . | . . . Piercing . | . . . Sneak Attacks . | . . . Combat Hostiles . | . . . Follow-up Attacks . | . . . Damage Inflicted 1200 | . 458 742 Guns 764 | . 458 306 Cannons . | . . . Explosions 411 | . . 411 Melee . | . . . Ramming 25 | . . 25 Kinetic 578 | . 458 120 Thermal 186 | . . 186 Explosive 411 | . . 411 Electromagnetic . | . . . Impact . | . . . Slashing . | . . . Piercing . | . . . Highest Corruption 1 | . . 1 Average Corruption 1 | . . 1 Corruption Purged . | . . . Overload Shots . | . . . Overflow Damage 36 | . . 36 Projectiles . | . . . Explosions 36 | . . 36 Melee . | . . . Knockbacks . | . . . Impact . | . . . Kinetic . | . . . Secondary . | . . . Self-Inflicted Damage 204 | . . 204 Shots 11 | . . 11 Rammed 8 | . . 8 Targets Rammed 10 | . . 10 Kicked 2 | . . 2 Crushed . | . . . Highest Temperature 30 | . . 30 Average Temperature 11 | . . 11 Received Heat Transfer . | . . . Siege Activations . | . . . Robots Corrupted . | . . . Combat Hostiles . | . . . Parts Fried . | . . . Impact Corruptions . | . . . Robots Melted . | . . . Combat Hostiles . | . . . Parts Melted . | . . . Heat Transferred 120 | . . 120 Parts Sabotaged . | . . . Parts Stolen . | . . . Parts Stripped . | . . . Power Chain Reactions . | . . . Missiles Intercepted . | . . . Alert | -11 -10 -10 ------- Run | Scr Mat Min Peak Influence 208 | . 208 9 Initial 4 | . . 4 Average 59 | . 104 2 Maximum Alert Level 1 | . 1 . Low Security (%) 89 | 100 81 100 Level 1 10 | . 18 . Level 2 . | . . . Level 3 . | . . . Level 4 . | . . . Level 5 . | . . . High Security . | . . . Max Security . | . . . Squads Dispatched . | . . . Investigation . | . . . Extermination . | . . . Reinforcement . | . . . Assault . | . . . Garrison . | . . . Intercept . | . . . Construction Impeded . | . . . Haulers Reinforced . | . . . Stealth | -11 -10 -10 --------- Run | Scr Mat Min Distress Signals 1 | . 1 . Communications Jammed . | . . . Distress Signals . | . . . Times Spotted 21 | . 12 9 Peak Tracking Total 8 | . 6 8 Tactical Retreats . | . . . Traps | -11 -10 -10 ------- Run | Scr Mat Min Traps Triggered . | . . . Indirectly . | . . . Trap Hack Attempts . | . . . Triggered . | . . . Disarmed . | . . . Reprogrammed . | . . . Reused . | . . . Traps Extracted . | . . . Installed . | . . . Triggered . | . . . Machines | -11 -10 -10 ---------- Run | Scr Mat Min Machines Disabled . | . . . Max in Single Turn . | . . . Machines Sabotaged . | . . . Garrisons Compromised . | . . . Overloaded Fab Kills . | . . . Fab Network Shutdowns . | . . . Hacking | -11 -10 -10 --------- Run | Scr Mat Min Machines Accessed 4 | . 4 . Terminals 4 | . 4 . Fabricators . | . . . Repair Stations . | . . . Recycling Units . | . . . Scanalyzers . | . . . Garrison Access . | . . . Total Hacks 12 | . 12 . Successful 8 | . 8 . Failed 4 | . 4 . Catastrophic . | . . . Database Lockouts . | . . . Manual 8 | . 8 . Terminals 12 | . 12 . Fabricators . | . . . Repair Stations . | . . . Recycling Units . | . . . Scanalyzers . | . . . Garrison Access . | . . . Terminal Hacks 7 | . 7 . Record 1 | . 1 . Robot Analysis 2 | . 2 . Branch Access Points 1 | . 1 . Unreport Threat 1 | . 1 . Locate Traps 1 | . 1 . Zone Layout 1 | . 1 . Fabricator Hacks . | . . . Repair Station Hacks . | . . . Recycling Unit Hacks . | . . . Scanalyzer . | . . . Garrison Access Hacks . | . . . Unauthorized Hacks 1 | . 1 . Terminals 1 | . 1 . Assimilate 1 | . 1 . Fabricators . | . . . Repair Stations . | . . . Recycling Units . | . . . Scanalyzers . | . . . Garrison Access . | . . . Data Cores Recovered . | . . . Used . | . . . Hacking Detections 3 | . 3 . Full Trace Events . | . . . Feedback Events . | . . . Feedback Blocked . | . . . Robot Schematics Acquired . | . . . Robots Built . | . . . Matter . | . . . Time . | . . . Total Robot Build Rating . | . . . Part Schematics Acquired . | . . . Parts Built . | . . . Matter . | . . . Time . | . . . Total Part Build Rating . | . . . Parts Repaired . | . . . Time . | . . . Parts Recycled . | . . . Recycled Matter . | . . . Retrieved Matter . | . . . Retrieved Components . | . . . Parts Scanalyzed . | . . . Part Schematics Acquired . | . . . Parts Damaged . | . . . Bothacking | -11 -10 -10 ------------ Run | Scr Mat Min Used RIF Installer . | . . . Robots Hacked . | . . . Non-combat . | . . . Combat . | . . . Robot Hacks Applied . | . . . Relay Couplers Released . | . . . Robots Rewired . | . . . Allies Hacked . | . . . Hacks Repelled . | . . . Allies | -11 -10 -10 -------- Run | Scr Mat Min Total Allies 2 | . 1 1 Largest Group 1 | . 1 1 Highest-Rated Group 31 | . 10 31 Highest-Rated Ally 31 | . 10 31 Total Orders . | . . . Ally Attacks 12 | . . 12 Total Damage 153 | . . 153 Kills 2 | . . 2 Allies Corrupted . | . . . Allies Melted . | . . . Intel | -11 -10 -10 ------- Run | Scr Mat Min Robot Analysis Total 2 | . 2 . Derelict Logs Recovered . | . . . Drone Launches . | . . . Drone Recoveries . | . . . Exploration | -11 -10 -10 ------------- Run | Scr Mat Min Turns Passed 885 | 81 501 303 Spaces Moved 427 | 54 263 110 Core 27 | 27 . . Treads 25 | . . 25 Legs 203 | 27 174 2 Wheels 172 | . 89 83 Hover . | . . . Flight . | . . . Fastest Speed 50 | 50 120 120 Average Speed 134 | 127 134 136 Slowest Speed 200 | 200 180 200 Overloaded Moves . | . . . Propulsion Burnouts . | . . . Robots Hopped . | . . . Cave-ins Triggered . | . . . Exploration Rate (%) 27 | 3 58 21 Regions Visited 2 Branch Regions 1 Pre-discovered Areas . | . . . Known Exits Taken 1 | . 1 . Unknown Exits Taken 1 | 1 . . Scrap Searched . | . . . Spaces Dug . | . . . Terrain Destroyed 91 | . . 91 Melee . | . . . Projectile . | . . . AOE 91 | . . 91 Terrain Rammed . | . . . Walls Destroyed . | . . . Machines Disabled . | . . . Actions | -11 -10 -10 --------- Run | Scr Mat Min Total 591 | 63 343 185 Wait 21 | . 18 3 Move 425 | 53 262 110 Hop . | . . . Pick Up 15 | 4 10 1 Fast Attach 12 | 6 5 1 Attach 9 | . 1 8 Detach . | . . . Swap 7 | . 3 4 Drop 8 | . 7 1 Fire 84 | . 37 47 Melee . | . . . Ram . | . . . Kick 3 | . . 3 Crush 7 | . . 7 Escape Stasis . | . . . Rewire . | . . . Trap . | . . . Miscellaneous . | . . . Route ------- -11/Scrapyard -10/Materials (discovered 3 exits: [*Mat] / *Min x2) -10/Mines History --------- Turn | Location | Event 3 | -11/Scrapyard | Discovered new exit (range 16) 82 | -11/Scrapyard | Entered Materials 213 | -10/Materials | Discovered new exit (range 9) 308 | -10/Materials | Build established: Mutant 388 | -10/Materials | Identified exit to Mines 583 | -10/Materials | Entered Mines 586 | -10/Mines | Received a Mining Laser from a helpful Derelict 640 | -10/Mines | Assembled infested the area 714 | -10/Mines | Met 8R-AWN 729 | -10/Mines | Attacked by 8R-AWN 775 | -10/Mines | Core integrity fell below 50% 836 | -10/Mines | Core integrity fell below 20% 886 | -10/Mines | Destroyed by 8R-AWN with 8R-AWN's Boregun Last Messages --------------- 00873_ Penetrated by HV Slug. 00873_ HV Slug penetrates Earth. 00873_ Penetrated by HV Slug. 00873_ HV Slug penetrates Earth. 00875_ Slammed into 8R-AWN. 00878_ HV Slug penetrates Earth. 00878_ Penetrated by HV Slug. 00878_ HV Slug penetrates Earth. 00878_ Slammed into 8R-AWN. 00880_ K-01 Serf collects debris. 00881_ Slammed into 8R-AWN. 00882_ Penetrated by HV Slug. 00882_ HV Slug penetrates Earth. 00882_ Penetrated by HV Slug. 00882_ HV Slug penetrates Earth. 00883_ The unstable cave ceiling collapses. 00883_ Slammed into 8R-AWN. 00884_ K-01 Serf collects debris. 00885_ The unstable cave ceiling collapses. 00886_ Penetrated by HV Slug. Map ----- +----------------------------------------------------+ | ?????????????????????????????????????????????????? | | ?????????????????????????????????????????????????? | | ?????????????????????????????????????????????????? | | ?????????????????????????????????????????????????? | | ?????????????????????????????????????????????????? | | ?????????????????????????????????????????????????? | | ?????????????????????????????????????????????????? | | ?????????????????????????????????????????????????? | | ?????????????????????????????????????????????????? | | ?????????????????????????????????????????????????? | | ?????????????????????????????????????????????????? | | ???????????????##????????????????????????????????? | | ??????????????? #??###??????????????????????????? | | ????????????? ? ??# ??????????????????????????? | | ????????????? ## ??# #?????????????????????????? | | ????????????? *### #?????????????????????????? | | ?????????????# #%# # #?????????????????????????? | | ?????????????# # #### #?????????????????????????? | | ?????????????# # #######???????????????????? | | ????????????? # ## ##??????????????????? | | ?????????????### # ## # # #??????????????????? | | ?????????????# # # # # # #??????????????????? | | ??????????????## ###|# # ### #???????????????? | | ??????? #%=*!! * #???????????????? | | ?????########""#**#"=%# g # # ##???????????????? | | ????## !#*# #@# # ##????????????????? | | ????# # #???????????????????? | | ???## ## #### ###???????????????????? | | ?### ####### ###?????????????????????? | | ## ##?????## """ #???????????????????????? | | # ##???????## """ ##???????????????????????? | | # ##?????????## """ ##????????????????????????? | | # #????????#### #?????????????????????????? | | # ##????????# ##?????????????????????????? | | #?????????# ######??????????????????????? | | #?????????# ####### ##?????????????????????? | | #?????##### ##### #?????????????????????? | | ##????## ## ## #?????????????????????? | | ##????## #??????????????????????? | | ##????## #####??????????????????????? | | #??????# ##??????????????????????????? | | ???????# ##???????????????????????????? | | ???????## #####????????????????????????????? | | ????????# #####????????????????????????????????? | | ???????## ##????????????????????????????????????? | | ??????## ##????????????????????????????????????? | | ??????# ! ##???????????????????????????????????? | | ??????# #???????????????????????????????????? | | ??????# #???????????????????????????????????? | | ??????## #??????????????????????????????????? | +----------------------------------------------------+ Best States ------------- Heat Dissipation 47 Energy Generation 10 Energy Capacity 250 Matter Stores 270 Matter Capacity 300 Sight Range 16 Terrain Scan Density 10 Evasion (%) 40 Recoil Reduction 2 Item Schematics ----------------- None Robot Schematics ------------------ None Fabricated ------------ Nothing Alien Tech Used ----------------- None Achievements -------------- None Challenges ------------ None Game ------ Seed WeldingImprinterMapper Manual? 0 Play Time 00:25:19 Cumulative 40.8 hours Start 2021.05.08 @ 12:53:38 End 2021.05.08 @ 13:18:27 Sessions 1 Manual Loads 0 Difficulty Rogue Special Mode None Game No. 38 Rogue 38 Adventurer 0 Explorer 0 Win Type - Total 1 Types 1/0/0/0/0/0/0/0/0 Lore% 21 Gallery% 42 Achievement% 31 Wizard Run 0 Options --------- ASCII 0 Keyboard 0 Movement Numpad Keybinds 0 Fullscreen 1 Font 12/Smallcaps Map View 83x54 Tactical HUD 1 Map Filters NONE Filters NONE Steam 1 RUN: 181ba027-d1cb-4c01-b491-f75a4167dcaa